bitfinex/quotes_ETHUSD_20250808
["timestamp","ask_amount","ask_price","bid_price","bid_amount"]
[1754666543454,5.21886498,3960.6,3960.5,0.001]
[1754666544339,4.56771298,3960.6,3960.5,0.001]
[1754666545643,2.04284302,3960.6,3960.5,0.001]
[1754666546341,4.56771298,3960.6,3960.5,0.001]
[1754666548952,8.61171298,3960.6,3960.5,0.001]
[1754666549273,4.1694,3960.6,3960.5,0.001]
[1754666549634,7.16026996,3960.6,3960.5,0.001]
[1754666549833,5.1166,3960.6,3960.5,0.001]
[1754666550240,7.64146996,3960.6,3960.5,0.001]
[1754666552494,0.1264,3960.6,3960.5,0.001]
[1754666552779,4.1694,3960.6,3960.5,0.001]
[1754666553284,0.1264,3960.6,3960.5,0.001]
[1754666553579,4.042,3960.6,3960.5,3.88963372]
[1754666553780,4.042,3960.6,3960.5,6.88963372]
[1754666554082,4.042,3960.6,3960.5,3.4301]
[1754666554289,4.042,3960.6,3960.5,5.52593372]
[1754666554585,4.042,3960.6,3960.5,0.001]
[1754666554750,5.1156,3960.6,3960.5,0.001]
[1754666554957,7.64046996,3960.6,3960.5,0.001]
[1754666555288,6.13212355,3960.6,3960.5,0.001]
[1754666555671,1.0736,3960.6,3960.5,0.001]
[1754666555985,0.466,3961.6,3960.5,0.001]
[1754666556312,0.1264,3961.0,3960.6,2.52481946]
[1754666556472,4.041,3960.9,3960.5,0.001]
[1754666556807,0.1264,3960.7,3960.5,0.001]
[1754666556976,6.56586996,3960.6,3960.5,0.001]
[1754666557182,7.51306996,3960.6,3960.5,0.001]
[1754666557498,4.9882,3960.6,3960.5,0.001]
[1754666557689,4.507,3960.6,3960.5,0.001]
[1754666558979,7.51306996,3960.6,3960.5,0.001]
[1754666559175,8.32816296,3960.6,3960.5,0.001]
[1754666559580,7.84696296,3960.6,3960.5,0.001]
[1754666559817,8.87816296,3960.6,3960.5,0.001]
[1754666560580,8.87816296,3960.6,3960.5,1e-08]
[1754666560776,9.42062977,3960.6,3960.5,1e-08]
[1754666560977,12.42062977,3960.6,3960.5,1e-08]
[1754666562092,12.79795377,3960.6,3960.5,1e-08]
[1754666562985,13.69917741,3960.6,3960.5,1e-08]
[1754666563508,12.79795377,3960.6,3960.5,1e-08]
[1754666563819,12.89912777,3960.6,3960.5,1e-08]
[1754666566026,9.76467545,3960.6,3960.5,1e-08]
[1754666566229,13.32247545,3960.6,3960.5,1e-08]
[1754666566584,13.32261904,3960.6,3960.5,1e-08]
[1754666566789,13.80381904,3960.6,3960.5,1e-08]
[1754666567192,8.52671681,3960.6,3960.5,1e-08]
[1754666567403,9.52054422,3960.6,3960.5,1e-08]
[1754666567692,9.52053569,3960.6,3960.5,1e-08]
[1754666568200,10.46773569,3960.6,3960.5,1e-08]
[1754666568399,9.41633327,3960.6,3960.5,1e-08]
[1754666568715,9.75670034,3960.6,3960.5,1e-08]
[1754666569088,15.5856024,3960.6,3960.5,1e-08]
[1754666571592,6.73386681,3960.6,3960.5,0.93460001]
[1754666571877,10.77186681,3960.6,3960.5,0.93460001]
[1754666572076,10.2294,3960.6,3960.5,0.93460001]
[1754666574102,10.2294,3960.6,3960.5,1e-08]
[1754666574488,12.75426996,3960.6,3960.5,1e-08]
[1754666574660,10.2294,3960.6,3960.5,1e-08]
[1754666574858,0.1264,3960.6,3960.5,0.92790001]
[1754666575062,0.54394238,3961.6,3961.3,2.5244238]
[1754666575288,0.1264,3961.5,3961.4,0.9279]
[1754666575501,4.1624,3961.5,3961.4,0.9279]
[1754666577574,4.1624,3961.5,3961.1,2.52453913]
[1754666577769,0.1264,3961.3,3961.1,2.52453913]
[1754666577992,4.035,3961.2,3961.1,2.52453913]
[1754666578498,4.035,3961.2,3961.0,2.96269875]
[1754666578689,4.035,3961.2,3961.1,2.52455126]
[1754666578890,4.035,3961.2,3961.1,0.4381]
[1754666579201,4.035,3961.2,3960.6,0.4381]
[1754666579372,2.52467641,3961.0,3960.5,1e-08]
[1754666579699,0.1264,3960.7,3960.5,1e-08]
[1754666579903,4.034,3960.6,3960.5,0.48980001]
[1754666580407,0.1264,3960.7,3960.6,2.52486996]
[1754666580563,0.1264,3960.9,3960.7,2.52480622]
[1754666580760,6.065,3961.7,3961.1,2.52451008]
[1754666581003,2.52436424,3961.4,3960.7,2.96289341]
[1754666581203,6.065,3961.7,3960.5,0.61620001]
[1754666581204,0.1264,3961.1,3960.5,0.61620001]
[1754666581388,4.033,3961.0,3960.5,1e-08]
[1754666581556,0.1264,3960.7,3960.6,2.52486996]
[1754666581762,4.1594,3960.7,3960.6,6.45276996]
[1754666582315,4.1594,3960.7,3960.6,3.0]
[1754666582463,4.1594,3960.7,3960.6,3.9279]
[1754666582663,4.1594,3960.7,3960.6,6.45276996]
[1754666583458,4.1594,3960.7,3960.6,3.9279]
[1754666583659,4.1594,3960.7,3960.6,6.45276996]
[1754666584297,4.1594,3960.7,3960.6,3.9279]
[1754666584665,0.1264,3960.7,3960.6,3.9279]
[1754666584861,4.1584,3960.7,3960.6,3.9279]
[1754666585469,4.1584,3960.7,3960.6,6.45276996]
[1754666586174,4.1584,3960.7,3960.6,3.9279]
[1754666587997,4.1584,3960.7,3960.6,5.96296996]
[1754666588565,4.1584,3960.7,3960.6,6.45276996]
[1754666589904,4.1584,3960.7,3960.6,3.9279]
[1754666590413,4.1584,3960.7,3960.6,3.4381]
[1754666590618,4.1584,3960.7,3960.6,3.0]
[1754666590777,4.1604,3960.7,3960.6,3.0]
[1754666591613,4.1604,3960.7,3960.5,1e-08]
[1754666591912,3.47916996,3960.6,3960.5,1e-08]
[1754666592912,4.02916996,3960.6,3960.5,1e-08]
[1754666594376,0.55,3960.6,3960.5,1e-08]
[1754666594580,4.1554,3960.6,3960.5,0.43810001]
[1754666594815,4.1554,3960.6,3960.5,0.92790001]
[1754666595115,0.1264,3960.6,3960.5,6.45283373]
[1754666595274,0.1264,3960.6,3960.5,7.35062288]
[1754666595473,4.1554,3960.6,3960.5,7.35062288]
[1754666595810,4.029,3960.6,3960.5,7.47702288]
[1754666596909,4.029,3960.6,3960.5,3.00000001]
[1754666597210,4.029,3960.6,3960.5,1e-08]
[1754666597608,4.029,3960.6,3960.5,0.43810001]
[1754666597910,4.029,3960.6,3960.5,3.45283373]
[1754666599382,4.027,3960.6,3960.5,3.45283373]
[1754666599801,0.1284,3960.7,3960.6,2.52486996]
[1754666600110,4.1554,3960.7,3960.6,3.45276996]
[1754666600346,4.029,3960.7,3960.6,6.61244502]
[1754666600614,4.029,3960.7,3960.6,7.17694502]
[1754666601190,4.029,3960.7,3960.6,19.54132215]
[1754666601386,4.029,3960.7,3960.6,20.03112215]
[1754666603111,4.028,3960.7,3960.6,20.03112215]
[1754666605823,4.028,3960.7,3960.6,19.10322215]
[1754666606006,4.028,3960.7,3960.6,5.65126996]
[1754666606918,4.028,3960.7,3960.6,5.52486996]
[1754666607800,4.026,3960.7,3960.6,5.52486996]
[1754666608001,0.002,3960.7,3960.6,19.29924709]
[1754666608201,4.026,3960.7,3960.6,19.42564709]
[1754666608424,4.026,3960.7,3960.6,21.62070986]
[1754666610140,0.002,3960.7,3960.6,21.62070986]
[1754666610361,0.002,3961.1,3961.0,2.52461499]
[1754666610641,0.002,3961.4,3961.3,5.5244238]
[1754666610808,0.002,3961.9,3961.8,2.5241052]
[1754666611008,4.025,3961.9,3961.8,18.37828233]
[1754666611202,4.025,3961.9,3961.8,18.50468233]
[1754666611434,4.025,3961.9,3961.8,19.42488233]
[1754666611645,4.025,3961.9,3961.8,5.6505052]
[1754666611849,4.025,3961.9,3961.8,6.46797426]
[1754666613219,0.002,3961.9,3961.8,20.11595139]
[1754666619874,0.002,3961.9,3961.8,6.34157426]
[1754666620172,0.002,3961.9,3961.8,6.78317426]
[1754666620474,0.002,3961.9,3961.8,7.26177426]
[1754666620749,0.002,3961.9,3961.8,6.34157426]
[1754666622462,0.002,3961.9,3961.8,6.78317426]
[1754666622663,0.002,3961.9,3961.8,7.26177426]
[1754666623455,0.002,3961.9,3961.8,7.38817426]
[1754666624755,0.002,3961.9,3961.8,6.46797426]
[1754666625465,0.002,3961.9,3961.8,7.38817426]
[1754666627439,0.002,3961.9,3961.8,6.46797426]
[1754666630380,0.002,3962.1,3961.8,6.46797426]
[1754666630677,0.002,3962.5,3962.4,15.79499344]
[1754666630678,1e-08,3962.5,3962.4,15.79499344]
[1754666630835,0.002,3962.9,3962.6,2.52359561]
[1754666631036,0.002,3962.9,3962.8,15.7947387]
[1754666631348,0.002,3962.9,3962.8,15.9211387]
[1754666631565,0.002,3962.9,3962.8,18.77783213]
[1754666631758,0.002,3962.9,3962.8,17.85763213]
[1754666632331,0.002,3962.9,3962.8,18.29923213]
[1754666632539,0.002,3962.9,3962.8,17.85763213]
[1754666632856,0.002,3962.9,3962.8,20.42807404]
[1754666639190,0.002,3962.9,3962.8,7.58636168]
[1754666639359,0.002,3962.9,3962.8,5.64986825]
[1754666639962,0.002,3962.9,3962.8,2.64986825]
[1754666640174,0.465,3962.9,3962.8,2.64986825]
[1754666640374,0.9182,3962.9,3962.8,2.64986825]
[1754666641092,0.9182,3962.9,3962.8,5.64986825]
[1754666641647,0.465,3962.9,3962.8,5.64986825]
[1754666642074,0.9182,3962.9,3962.8,5.64986825]
[1754666642258,0.9182,3962.9,3962.8,5.52346825]
[1754666642758,0.465,3962.9,3962.8,5.52346825]
[1754666642962,0.002,3962.9,3962.8,19.18252598]
[1754666643173,0.002,3962.9,3962.8,20.12172598]
[1754666645090,0.002,3963.3,3963.2,5.52321356]
[1754666645269,0.002,3963.3,3963.2,9.01770365]
[1754666645507,0.002,3963.3,3963.2,6.58881356]
[1754666649002,0.002,3963.8,3963.7,2.52289527]
[1754666649246,0.002,3963.8,3963.7,5.52289527]
[1754666649718,0.002,3963.8,3963.7,5.64929527]
[1754666650119,0.465,3963.8,3963.7,5.64929527]
[1754666650700,0.002,3963.8,3963.7,5.64929527]
[1754666654632,0.002,3963.8,3963.7,3.1264]
[1754666654833,0.9182,3963.8,3963.7,3.1264]
[1754666655712,0.9182,3963.8,3963.7,3.0]
[1754666656018,0.9182,3963.8,3963.5,0.1264]
[1754666656212,0.9162,3963.7,3963.5,0.1264]
[1754666656711,0.74700106,3963.8,3963.3,2.5231291]
[1754666657042,0.9162,3963.6,3963.2,0.1264]
[1754666657237,4.003,3963.5,3963.2,0.1264]
[1754666657440,5.0456,3963.5,3963.0,3.1264]
[1754666657641,4.1294,3963.5,3963.0,3.1264]
[1754666657821,0.9162,3963.4,3963.0,3.1264]
[1754666658022,0.9162,3963.3,3963.0,3.1264]
[1754666658253,0.9162,3963.3,3962.5,14.56271908]
[1754666658254,0.55,3963.2,3962.5,4.29]
[1754666658431,0.1264,3962.9,3962.3,0.1264]
[1754666658753,4.9182,3962.8,3962.3,0.1264]
[1754666658936,0.9162,3962.7,3962.5,3.0]
[1754666659342,0.463,3962.6,3962.5,2.5236443]
[1754666659546,0.463,3962.6,3962.5,5.5236443]
[1754666659856,0.1264,3962.9,3962.8,2.52346825]
[1754666660153,0.1264,3962.9,3962.8,15.79617683]
[1754666660154,4.002,3962.9,3962.8,15.79617683]
[1754666660571,4.002,3962.9,3962.8,15.92257683]
[1754666660769,4.002,3962.9,3962.8,19.43031069]
[1754666661147,4.001,3963.5,3963.4,5.52308623]
[1754666661348,0.1284,3963.7,3963.4,5.52308623]
[1754666661349,0.002,3963.7,3963.6,5.52295892]
[1754666661547,0.002,3963.7,3963.6,5.64935892]
[1754666661863,0.002,3963.7,3963.6,6.58855892]
[1754666664753,0.002,3964.1,3963.8,2.52278552]
[1754666665051,0.002,3964.1,3964.0,5.52270433]
[1754666665248,0.002,3964.1,3964.0,12.20439442]
[1754666665451,0.002,3964.1,3964.0,9.12309442]
[1754666667061,0.04,3965.4,3964.9,5.5221317]
[1754666667572,0.04,3965.4,3965.3,5.52187728]
[1754666667906,0.04,3965.4,3965.3,22.48753022]
[1754666668052,0.04,3965.4,3965.3,25.04282031]
[1754666668248,0.04,3965.4,3965.3,25.96152031]
[1754666668889,0.04,3965.4,3965.3,21.96352031]
[1754666669092,0.04,3965.4,3965.3,8.20356737]
[1754666669385,0.04,3965.4,3965.3,5.64827728]
[1754666669691,0.04,3965.4,3965.3,6.07817728]
[1754666669989,0.04,3965.4,3965.3,18.48953022]
[1754666670192,0.04,3965.4,3965.3,19.40823022]
[1754666670798,0.04,3965.4,3965.3,23.40523022]
[1754666670968,0.04,3966.4,3965.8,2.5215556]
[1754666671166,0.04,3966.4,3966.1,2.52133635]
[1754666671488,0.04,3966.4,3966.3,5.52124145]
[1754666671663,0.04,3966.4,3966.3,5.64764145]
[1754666672107,0.04,3966.4,3966.3,3.1264]
[1754666672408,0.962,3966.4,3964.9,12.84125294]
[1754666672709,0.962,3966.4,3966.0,0.1264]
[1754666672710,0.4676,3966.3,3966.0,0.1264]
[1754666673018,0.922,3966.3,3966.0,0.1264]
[1754666673185,0.04,3966.4,3966.0,0.1264]
[1754666673186,0.4544,3966.2,3966.0,0.1264]
[1754666673383,0.04,3966.4,3966.0,0.1264]
[1754666673874,4.917,3966.3,3966.0,0.1264]
[1754666674072,0.4544,3966.2,3966.0,0.1264]
[1754666674372,0.922,3966.2,3966.0,0.1264]
[1754666674806,0.55,3966.1,3966.0,0.1264]
[1754666675018,1.5984,3966.1,3965.5,3.1264]
[1754666675305,1.5984,3966.1,3965.6,3.0]
[1754666675550,0.04,3966.4,3965.6,3.0]
[1754666675725,3.995,3966.2,3966.0,3.1264]
[1754666676023,3.994,3966.3,3966.0,0.1264]
[1754666676173,0.04,3966.4,3966.0,0.1264]
[1754666676174,4.034,3966.4,3966.0,0.1264]
[1754666676614,4.5016,3966.4,3966.0,3.1264]
[1754666677070,4.034,3966.4,3966.0,0.1264]
[1754666677270,0.922,3966.3,3966.0,0.1264]
[1754666677794,0.922,3966.2,3966.0,0.1264]
[1754666677995,0.924,3966.2,3966.0,0.1264]
[1754666678308,1.5984,3966.1,3965.6,3.0]
[1754666678615,1.5984,3966.1,3965.5,0.1264]
[1754666678616,0.922,3966.0,3965.5,0.1264]
[1754666678916,0.4676,3966.0,3965.6,3.0]
[1754666679117,0.4676,3966.0,3965.5,0.1264]
[1754666679350,0.55,3965.8,3965.5,0.1264]
[1754666679629,5.137,3965.7,3965.4,3.0]
[1754666679835,3.993,3965.7,3965.4,2.52176225]
[1754666679996,3.993,3965.7,3965.4,2.52179364]
[1754666680200,3.993,3965.7,3965.5,3.0]
[1754666680394,0.4676,3965.6,3965.3,0.1264]
[1754666680595,0.922,3965.6,3965.3,2.64827603]
[1754666680794,0.1264,3965.9,3965.5,3.0]
[1754666680998,4.1184,3965.9,3965.5,5.52168901]
[1754666681233,4.586,3965.9,3965.5,5.52168901]
[1754666681627,2.9777589,3966.2,3965.5,5.52168901]
[1754666681628,0.002,3966.2,3965.6,3.0]
[1754666681829,0.1284,3966.2,3965.7,0.1264]
[1754666682202,3.992,3966.1,3965.7,0.1264]
[1754666682837,3.992,3966.1,3965.8,2.52155933]
[1754666683205,3.992,3966.1,3965.7,2.64799932]
[1754666683528,3.992,3966.1,3965.8,2.52154561]
[1754666683733,0.922,3966.0,3965.7,0.1264]
[1754666683912,0.922,3966.0,3965.5,3.1264]
[1754666684107,0.4676,3965.9,3965.5,2.6481427]
[1754666684339,4.71515987,3966.1,3965.5,0.1264]
[1754666684535,4.71515987,3966.1,3965.7,3.0]
[1754666684715,4.71515987,3966.1,3965.5,3.1264]
[1754666684911,5.18275987,3966.1,3965.9,3.0]
[1754666685118,5.18275987,3966.1,3965.8,3.0]
[1754666685319,4.87716554,3966.0,3965.4,3.0]
[1754666685511,0.1264,3965.8,3965.4,5.52179426]
[1754666685833,0.4676,3965.7,3965.5,3.0]
[1754666686134,3.991,3965.6,3965.5,3.0]
[1754666686340,3.991,3965.6,3965.5,2.52175009]
[1754666686833,0.1264,3965.8,3965.4,2.5218038]
[1754666687034,4.4576,3965.7,3965.4,2.5218038]
[1754666687333,4.4576,3965.7,3965.2,2.64833959]
[1754666687334,0.922,3965.6,3965.2,3.1264]
[1754666687538,0.922,3965.5,3965.2,2.64832124]
[1754666687737,0.922,3965.5,3965.2,2.52192124]
[1754666687938,0.4676,3965.4,3965.3,2.52187728]
[1754666688641,3.99,3965.7,3965.1,0.1264]
[1754666688809,3.99,3965.6,3965.5,5.52175009]
[1754666689010,0.55,3965.7,3965.6,5.52168561]
[1754666689205,0.55,3965.7,3965.5,3.0]
[1754666689206,4.54,3965.7,3965.5,2.52173512]
[1754666689406,4.54,3965.7,3965.6,3.0]
[1754666689841,0.55,3965.7,3965.6,3.0]
[1754666690011,4.54,3965.7,3965.6,3.0]
[1754666690414,5.60936807,3965.7,3965.3,3.0]
[1754666690644,0.4676,3965.6,3965.1,2.64836522]
[1754666690941,4.54,3965.7,3965.6,3.0]
[1754666691140,4.539,3965.7,3965.6,3.0]
[1754666691342,2.97771204,3966.2,3965.8,3.0]
[1754666691343,0.002,3966.2,3965.8,3.0]
[1754666691544,0.002,3966.2,3966.1,5.52136859]
[1754666691747,3.991,3966.2,3966.1,5.52136859]
[1754666692743,3.991,3966.2,3966.1,15.78021043]
[1754666693230,3.991,3966.2,3966.1,16.69891043]
[1754666693745,3.991,3966.2,3966.1,15.90661043]
[1754666693957,5.3161,3966.2,3964.9,10.25884184]
[1754666694254,0.55,3965.9,3965.4,2.52181368]
[1754666694455,4.3941,3966.2,3965.1,0.1264]
[1754666694456,0.6764,3965.7,3965.5,2.52172982]
[1754666694754,0.6764,3965.7,3965.6,3.0]
[1754666695060,4.6644,3965.7,3965.6,2.5216865]
[1754666695353,3.988,3965.7,3965.6,2.5216865]
[1754666695939,3.988,3965.7,3965.5,2.52173497]
[1754666695940,4.4474,3965.7,3965.5,2.52173497]
[1754666696217,4.4474,3965.7,3965.6,5.5216865]
[1754666696431,3.988,3965.7,3965.6,5.5216865]
[1754666697130,0.1284,3966.2,3966.0,2.52143136]
[1754666697334,3.987,3966.1,3966.0,2.52143136]
[1754666697644,3.987,3966.1,3965.9,2.52148097]
[1754666697846,1.4646,3966.0,3965.6,2.5216252]
[1754666698114,0.4594,3965.9,3965.7,2.5216131]
[1754666698238,0.6764,3966.0,3965.8,5.52155933]
[1754666698556,0.6764,3966.0,3965.9,2.52149575]
[1754666698719,4.6634,3966.0,3965.9,2.52149575]
[1754666698927,4.6634,3966.0,3965.8,5.52154445]
[1754666699436,4.6634,3966.0,3965.8,3.0]
[1754666699632,0.4594,3965.9,3965.8,3.0]
[1754666699957,0.002,3965.9,3965.8,5.52155933]
[1754666700332,3.989,3965.9,3965.8,5.52155933]
[1754666700660,3.989,3965.9,3965.8,6.57885933]
[1754666701153,3.989,3965.9,3965.8,6.09985933]
[1754666701355,3.989,3965.9,3965.8,5.64795933]
[1754666701895,4.9381,3965.9,3965.8,3.0]
[1754666702033,5.0645,3965.9,3965.8,3.0]
[1754666702893,0.55,3965.8,3965.4,0.001]
[1754666703037,0.55,3965.7,3965.4,0.001]
[1754666703357,0.6764,3965.5,3965.4,0.001]
[1754666703563,4.6614,3965.5,3965.4,0.001]
[1754666703945,5.1208,3965.5,3965.4,0.001]
[1754666704472,5.576,3965.5,3965.4,0.001]
[1754666704677,5.1208,3965.5,3965.4,0.001]
[1754666704972,4.6614,3965.5,3965.4,0.001]
[1754666706069,5.1208,3965.5,3965.4,0.001]
[1754666706371,5.576,3965.5,3965.4,0.001]
[1754666707867,4.6614,3965.5,3965.4,0.001]
[1754666709074,5.9241089,3965.5,3965.4,0.001]
[1754666709374,4.6614,3965.5,3965.4,0.001]
[1754666709575,8.09775009,3965.5,3965.4,0.001]
[1754666709875,5.576,3965.5,3965.4,0.001]
[1754666710050,7.64255009,3965.5,3965.4,0.001]
[1754666710451,5.1208,3965.5,3965.4,0.001]
[1754666710667,6.18272651,3965.5,3965.4,0.001]
[1754666710877,5.72332651,3965.5,3965.4,0.001]
[1754666711377,9.1596766,3965.5,3965.4,0.001]
[1754666711574,6.63792651,3965.5,3965.4,0.001]
[1754666711878,0.6764,3965.5,3965.4,0.001]
[1754666712061,4.6594,3965.5,3965.4,0.001]
[1754666714167,5.1188,3965.5,3965.4,0.001]
[1754666714357,5.1188,3965.5,3964.6,3.48]
[1754666714358,3.07225893,3964.7,3964.6,0.001]
[1754666714559,13.11025893,3964.7,3964.6,0.001]
[1754666714784,15.72714273,3964.7,3964.6,0.001]
[1754666714971,14.81254273,3964.7,3964.6,0.001]
[1754666716285,15.27194273,3964.7,3964.6,0.001]
[1754666717167,10.7144,3964.7,3964.6,0.001]
[1754666717349,13.23665893,3964.7,3964.6,0.001]
[1754666717550,13.69185893,3964.7,3964.6,0.001]
[1754666717762,14.15125893,3964.7,3964.6,0.001]
[1754666718394,6.7324,3964.7,3964.6,0.001]
[1754666718684,10.7144,3964.7,3964.6,0.001]
[1754666719486,10.7144,3964.7,3964.6,3.45422255]
[1754666719487,10.038,3964.7,3964.6,3.45422255]
[1754666719659,10.038,3964.7,3964.6,1.52956345]
[1754666719854,10.038,3964.7,3964.6,0.9319]
[1754666720055,10.038,3964.7,3964.6,3.45422255]
[1754666721087,10.038,3964.7,3964.6,0.9319]
[1754666721448,10.038,3964.7,3964.6,3.45422255]
[1754666721980,10.038,3964.7,3964.6,6.45422255]
[1754666721981,10.037,3964.7,3964.6,6.45422255]
[1754666722183,10.037,3964.7,3964.6,7.36452497]
[1754666722681,6.056,3964.7,3964.6,7.36452497]
[1754666722884,10.037,3964.7,3964.6,7.36452497]
[1754666723183,0.1264,3965.3,3964.7,3.0]
[1754666723387,3.981,3965.2,3965.1,2.52200448]
[1754666723582,3.981,3965.2,3965.1,2.97390448]
[1754666723787,0.002,3965.9,3965.1,1.22829045]
[1754666723972,4.1074,3965.8,3965.1,0.42379045]
[1754666724179,0.55,3965.7,3965.1,2.64838237]
[1754666724387,3.98,3965.6,3965.1,2.64838237]
[1754666724590,3.98,3965.6,3964.9,2.52212292]
[1754666724591,0.55,3965.5,3964.9,3.0]
[1754666724792,3.98,3965.4,3964.9,0.1264]
[1754666724990,0.55,3965.2,3964.6,0.001]
[1754666725192,3.98,3965.1,3964.8,5.52218805]
[1754666725491,0.6764,3965.2,3964.9,2.5221212]
[1754666725692,3.98,3965.0,3964.9,3.0]
[1754666725887,3.98,3965.0,3964.9,5.5221317]
[1754666726091,3.98,3965.0,3964.9,3.0]
[1754666727513,0.1264,3965.4,3965.0,3.0]
[1754666727669,3.98,3965.3,3965.2,2.52192277]
[1754666727862,3.979,3965.3,3965.2,3.60052277]
[1754666728065,3.979,3965.3,3965.2,6.60052277]
[1754666728464,3.979,3965.3,3965.2,4.0786]
[1754666728678,3.979,3965.3,3965.2,6.11894088]
[1754666729209,3.979,3965.3,3965.2,5.64834088]
[1754666729418,0.55,3965.7,3965.4,2.52176647]
[1754666729718,0.55,3965.7,3965.5,2.52175009]
[1754666730008,3.979,3965.6,3965.5,2.52175009]
[1754666730207,3.979,3965.6,3965.5,2.52169003]
[1754666730409,3.979,3965.6,3965.3,6.47407593]
[1754666730782,3.979,3965.6,3965.4,2.52180547]
[1754666730971,3.978,3965.5,3965.3,2.52186682]
[1754666731304,0.55,3965.4,3964.9,2.6484803]
[1754666731469,0.55,3965.4,3965.0,3.0]
[1754666731660,0.55,3965.4,3964.9,0.1264]
[1754666731860,3.978,3965.3,3965.2,2.52189028]
[1754666732265,0.55,3965.4,3965.2,5.52189028]
[1754666732499,0.55,3965.4,3965.3,3.0]
[1754666732699,4.528,3965.4,3965.2,2.52189028]
[1754666732870,3.978,3965.3,3965.2,2.52189028]
[1754666733072,0.55,3965.4,3965.3,3.0]
[1754666733318,0.759582,3965.9,3965.4,2.52181368]
[1754666733612,4.6544,3965.8,3965.3,2.99246703]
[1754666733984,4.6544,3965.8,3965.3,3.0]
[1754666734163,0.95646,3965.7,3965.3,3.0]
[1754666734364,0.55,3965.6,3964.9,3.0]
[1754666734564,0.55,3965.2,3964.6,0.001]
[1754666734873,0.6764,3964.7,3964.6,0.001]
[1754666735073,4.97326011,3964.7,3964.6,0.001]
[1754666735286,8.43871904,3964.7,3964.6,0.001]
[1754666735795,7.49551904,3964.7,3964.6,0.001]
[1754666736361,8.43871904,3964.7,3964.6,0.001]
[1754666736569,4.46171904,3964.7,3964.6,0.001]
[1754666736767,4.97326011,3964.7,3964.6,0.001]
[1754666736967,4.6534,3964.7,3964.6,0.001]
[1754666737193,0.6764,3964.7,3964.6,0.001]
[1754666737579,4.6534,3964.7,3964.6,0.001]
[1754666739474,4.6524,3964.7,3964.6,2.52332255]
[1754666739980,4.6524,3964.7,3964.6,5.52332255]
[1754666740181,0.6764,3964.7,3964.6,5.52332255]
[1754666740387,4.6524,3964.7,3964.6,3.001]
[1754666740599,0.6764,3964.7,3964.6,3.001]
[1754666740770,4.6524,3964.7,3964.6,3.001]
[1754666740967,0.6764,3964.7,3964.6,3.001]
[1754666741167,4.6524,3964.7,3964.6,0.001]
[1754666741396,5.16226,3964.7,3964.6,0.001]
[1754666741599,5.920032,3964.7,3964.6,0.001]
[1754666742381,5.283772,3964.7,3964.6,0.001]
[1754666742701,5.410172,3964.7,3964.6,0.001]
[1754666743904,5.0986,3964.7,3964.6,0.001]
[1754666744104,4.6524,3964.7,3964.6,0.001]
[1754666746776,3.975,3964.7,3964.6,0.9532]
[1754666746979,3.975,3964.7,3964.6,4.13572269]
[1754666747173,3.975,3964.7,3964.6,7.13572269]
[1754666747379,3.975,3964.7,3964.6,6.47552255]
[1754666747681,3.975,3964.7,3964.6,5.52332255]
[1754666748801,0.1264,3965.0,3964.7,2.52225893]
[1754666749026,3.974,3964.9,3964.8,2.52219531]
[1754666749204,0.1264,3965.2,3965.0,2.5220607]
[1754666749526,3.974,3965.1,3965.0,2.5220607]
[1754666749821,0.002,3965.9,3965.0,1.5518456]
[1754666750028,3.974,3965.8,3965.6,2.52166322]
[1754666750179,0.55,3965.7,3965.6,2.52166322]
[1754666750723,0.55,3965.7,3965.5,2.52173711]
[1754666751731,0.55,3965.7,3965.6,3.4738865]
[1754666752228,0.1264,3965.8,3965.7,2.52162291]
[1754666752396,3.973,3965.7,3965.6,0.4706]
[1754666752581,3.973,3965.7,3965.6,0.9522]
[1754666752783,3.973,3965.7,3965.6,6.4738865]
[1754666753319,3.973,3965.7,3965.6,5.5216865]
[1754666753818,3.973,3965.7,3965.6,5.9922865]
[1754666754112,3.973,3965.7,3965.6,6.4738865]
[1754666754553,0.1284,3965.9,3965.6,6.4738865]
[1754666754740,3.972,3965.8,3965.7,0.9009]
[1754666754930,3.972,3965.8,3965.7,3.42252291]
[1754666755126,3.972,3965.8,3965.7,2.95042291]
[1754666755318,3.972,3965.8,3965.7,2.52162291]
[1754666756644,3.972,3965.8,3965.6,3.0]
[1754666756855,0.96004,3965.7,3965.1,2.52195486]
[1754666757024,0.6764,3965.7,3965.4,2.52180939]
[1754666757428,0.6764,3965.7,3965.3,3.0]
[1754666757631,0.6764,3965.7,3965.3,2.52186741]
[1754666757909,0.6764,3965.7,3965.3,0.9009]
[1754666758139,0.6764,3965.7,3965.4,0.4288]
[1754666758344,0.6764,3965.7,3965.4,2.95056558]
[1754666758753,0.6764,3965.7,3965.2,3.0]
[1754666759042,0.55,3965.5,3964.9,3.0]
[1754666759375,3.971,3965.4,3964.9,2.64851296]
[1754666759578,3.971,3965.4,3965.0,3.0]
[1754666759579,0.55,3965.3,3965.0,3.0]
[1754666759797,0.55,3965.3,3964.9,0.1264]
[1754666759946,0.55,3965.1,3964.7,2.52224847]
[1754666760143,0.55,3964.9,3964.6,0.001]
[1754666760542,3.07225893,3964.7,3964.6,0.001]
[1754666760761,7.04225893,3964.7,3964.6,0.001]